[Event "FIDE WSTC Open 50 2025"]
[Site "Prague"]
[Date "2025.02.19"]
[Round "3.16"]
[White "Min, Valeriy"]
[Black "Haentsch, Ralf"]
[Result "1/2-1/2"]
[Annotator "TA"]
[ECO "D38"]
[WhiteElo "2273"]
[BlackElo "2087"]
[PlyCount "97"]
[EventDate "2025.02.17"]
[EventType "team-tourn"]
[EventCountry "CZE"]
[SourceTitle "playchess.com"]
[Source "ChessBase"]
[SourceQuality "1"]
[TimeControl "40/5400+30:1800+30"]

{[%evp 13,97,34,31,16,57,45,46,25,21,12,19,19,18,12,22,-11,-8,-35,-39,-37,-45,-44,-49,-58,-29,-22,-22,-97,-36,-39,-41,-77,-89,-107,-95,-125,-117,-151,-97,-142,-137,-130,-137,-135,-135,-191,-142,-141,-141,-141,-128,-128,-128,-137,-122,-128,-128,-128,-128,-150,-142,-154,-158,-154,-133,-123,-85,-120,-112,-142,-25,-116,-128,-117,-8,-8,-8,-8,-8,-12,-12,-47,-72,-79,0,-12]} 1. Nf3 {[%emt 0:00:02]} d5 {[%emt 0:00:11]} 2. d4 {[%emt 0:00:22]} Nf6 {[%emt 0:00:34]} 3. c4 {[%emt 0:00:13]} e6 {[%emt 0:00:23]} 4. Nc3 {[%emt 0:01:17]} Bb4 {[%emt 0:01:22]} 5. Bg5 {[%emt 0:04:24]} h6 {[%emt 0:01:44]} 6. Bxf6 {[%emt 0:00:59]} Bxc3+ {[%emt 0:03:14]} 7. bxc3 {[%emt 0:00:12]} Qxf6 {[%emt 0:00:11]} 8. Qb3 {[%emt 0:08:32] D38: Queen's Gambit Declined: Ragozin Defence (4 Nf3 Bb4).} c6 {[%emt 0:04:15]} 9. e3 {[%emt 0:01:35]} O-O {[%emt 0:01:15]} 10. Ne5 {[%emt 0:01:35] White is slightly better.} Rd8 {[%emt 0:05:59]} 11. Be2 $146 {[%emt 0:11:30]} (11. Bd3 Nd7 12. Nxd7 Rxd7 13. O-O b6 14. a4 Ba6 15. a5 dxc4 16. Bxc4 b5 17. Be2 {1-0 Moroni,L (2460)-Capone,N (2391) Wch U16 Porto Carras 2015 (8)}) 11... Nd7 {[%emt 0:02:10]} 12. Nxd7 {[%emt 0:00:27]} Rxd7 {[%emt 0:00:09]} 13. O-O {[%emt 0:03:47]} Rc7 {[%emt 0:10:00]} 14. f4 {[%emt 0:05:26]} b6 {[%emt 0:09:38]} 15. Rae1 {[%emt 0:10:43]} Ba6 {[%emt 0:11:54]} 16. Qa4 {[%emt 0:08:47]} Bxc4 {[%emt 0:02:47]} 17. Bxc4 {[%emt 0:00:24]} dxc4 {[%emt 0:00:04]} 18. Qxc4 {[%emt 0:00:24]} Qe7 {[%emt 0:08:22]} 19. e4 {[%emt 0:05:34]} Rd8 {[%emt 0:02:48]} 20. Qa4 {[%emt 0:05:31]} (20. f5 $11 {remains equal.}) 20... Qd7 {[%emt 0:11:31]} (20... c5 $17 21. Rd1 Rd6) 21. Rd1 $15 {[%emt 0:02:47]} c5 {[%emt 0:03:08]} 22. Qb3 {[%emt 0:00:26]} cxd4 {[%emt 0:03:46]} 23. cxd4 {[%emt 0:00:23]} Qc6 $1 {[%emt 0:04:08]} 24. Qe3 {[%emt 0:05:31]} Qa4 {[%emt 0:01:19]} 25. f5 {[%emt 0:02:13]} Qxa2 {[%emt 0:04:52]} (25... exf5 $142 26. Qf4 Re7 (26... Rxd4 27. Qxc7 Rxd1 28. Qc8+ Kh7 29. Qxf5+ Kh8 30. Qc8+ Kh7 31. Qf5+ Kg8 32. Qxf7+ Kh8 33. Qf8+ Kh7 34. Qf5+ Kh8 35. Qc8+ Kh7 36. Qf5+ Kh8 37. Qf8+ Kh7 38. Qf5+ $11) 27. exf5 Red7 (27... Qxa2 $2 28. f6 $17)) 26. Rd2 {[%emt 0:07:52]} Rc2 {[%emt 0:00:49]} 27. Rxc2 {[%emt 0:00:22]} Qxc2 {[%emt 0:00:01]} 28. fxe6 {[%emt 0:00:26]} fxe6 $17 {[%emt 0:00:44][%mdl 4096] Endgame KQR-KQR. Black is a pawn up.} 29. Rc1 {[%emt 0:01:06]} (29. d5 $17 {was called for.}) 29... Qa4 {[%emt 0:00:13]} ({Black should play} 29... Qb2 $19 30. d5 Qe5 (30... exd5 31. exd5 Qa2 32. Qe6+ Kh8 33. Rc8 $17) 31. dxe6 Qxe6) 30. d5 {[%emt 0:00:21]} exd5 {[%emt 0:02:11]} 31. exd5 {[%emt 0:00:11]} Qd7 {[%emt 0:00:41]} 32. Rd1 {[%emt 0:00:52]} Qd6 {[%emt 0:00:52]} 33. Qb3 {[%emt 0:00:48]} a5 {[%emt 0:01:23]} 34. h3 {[%emt 0:00:47]} Qc5+ {[%emt 0:00:42]} 35. Kh1 {[%emt 0:00:31]} Rd6 {[%emt 0:00:17]} 36. Rb1 {[%emt 0:02:35]} Qxd5 {[%emt 0:01:33]} (36... Rxd5 $2 37. Rd1 (37. Qxb6 $2 {loses.} Rd1+ 38. Rxd1 Qxb6 $19) 37... Kh7 38. Rxd5 $18 (38. Qxd5 Qxd5 39. Rxd5 Kg8 $18)) 37. Qxd5+ {[%emt 0:00:09]} Rxd5 {[%emt 0:00:01]} 38. Rxb6 {[%emt 0:00:05] KR-KR. Black is a pawn up.} h5 {[%emt 0:02:03]} 39. Ra6 {[%emt 0:01:35]} Kf7 {[%emt 0:00:47]} 40. Kh2 {[%emt 0:00:12]} h4 {[%emt 0:01:36]} 41. Kg1 {[%emt 0:30:44] [#]} g5 {[%emt 0:30:44]} (41... Rd1+ $1 $17 42. Kf2 Ra1) 42. Kf2 {[%emt 0:06:28] [#]} (42. g3 $1 $11) 42... Ke7 $1 {[%emt 0:00:36]} 43. g3 {[%emt 0:00:00]} hxg3+ {[%emt 0:00:00]} (43... Rf5+ $17 44. Kg2 hxg3) 44. Kxg3 $11 {[%emt 0:00:00]} Kd7 {[%emt 0:00:00]} 45. Kf3 {[%emt 0:00:00]} Kc7 {[%emt 0:00:00]} 46. Ke4 {[%emt 0:00:00]} Rb5 {[%emt 0:00:00]} 47. Kd4 {[%emt 0:00:00]} Kb7 {[%emt 0:00:00]} 48. Rg6 {[%emt 0:00:00]} Kc7 {[%emt 0:00:00]} (48... a4 $17 {And now ...a3 would win.} 49. Kc3 a3 50. Rg7+ Kc6) 49. Ra6 {[%emt 0:00:00] White happily takes the draw.   Weighted Error Value: White=0.19 (very precise) /Black=0.22 (precise)   Mistake:       	White=3     	Black=6      Inaccurate:     	White=7     	Black=3      OK:         	White=15    	Black=17     Best:        	---       	Black=2      Strong:       	---       	Black=2} 1/2-1/2

[Event "FIDE WSTC Open 50 2025"]
[Site "Prague"]
[Date "2025.02.19"]
[Round "3.18"]
[White "Farrell, Neil"]
[Black "Mrva, Martin"]
[Result "0-1"]
[Annotator "TA"]
[ECO "E71"]
[WhiteElo "2116"]
[BlackElo "2394"]
[PlyCount "82"]
[EventDate "2025.02.17"]
[EventType "team-tourn"]
[EventCountry "CZE"]
[SourceTitle "playchess.com"]
[Source "ChessBase"]
[SourceQuality "1"]
[TimeControl "40/5400+30:1800+30"]

{[%evp 13,82,30,38,22,33,37,72,51,59,45,60,17,64,57,92,111,125,121,124,115,114,0,0,-69,0,-14,-11,-31,-21,-20,-11,-20,-11,-38,-33,-164,-162,-187,-151,-249,-192,-223,-231,-856,-663,-703,-700,-1123,-1123,-1109,-1082,-1102,-1101,-872,-795,-1709,-1525,-2945,-2906,-2587,-2414,-2309,-2212,-4809,-4809,-1937,-1782,-29976,-6018,-6636,-6656]} 1. d4 {[%emt 0:00:04]} Nf6 {[%emt 0:00:09]} 2. c4 {[%emt 0:00:17]} g6 {[%emt 0:00:13]} 3. Nc3 {[%emt 0:00:11]} Bg7 {[%emt 0:00:07]} 4. e4 {[%emt 0:00:20]} d6 {[%emt 0:00:06]} 5. h3 {[%emt 0:01:14]} O-O {[%emt 0:00:11]} 6. Be3 {[%emt 0:00:35]} e5 {[%emt 0:01:31] 6...Nc6 is more advanced technology.} 7. d5 {[%emt 0:00:22]} Na6 {[%emt 0:00:30]} 8. g4 {[%emt 0:01:00] E71: King's Indian: 4 e4 d6 5 h3.} Nc5 {[%emt 0:00:20]} 9. f3 {[%emt 0:00:21]} Nfd7 {[%emt 0:04:40]} 10. h4 {[%emt 0:05:31] White is better.} f5 $146 {[%emt 0:10:29]} (10... h6 11. Qd2 Qe7 12. Bxh6 c6 13. O-O-O Kh7 14. h5 Rh8 15. Be3 Kg8 16. h6 cxd5 17. Nxd5 {1-0 Stefanou,K (2042)-Michos,M (1086) GRE-chT 48th 2021 (1.5)}) 11. g5 {[%emt 0:01:28]} a5 {[%emt 0:09:28]} 12. Qd2 {[%emt 0:04:57]} a4 {[%emt 0:03:30]} (12... Na6 $11) 13. O-O-O $14 {[%emt 0:20:34]} c6 {[%emt 0:09:13]} 14. h5 {[%emt 0:12:05]} f4 {[%emt 0:07:31]} 15. Bxc5 {[%emt 0:08:04]} Nxc5 {[%emt 0:01:33] [#]} 16. dxc6 $1 {[%emt 0:03:42] and h6 would now be decisive} bxc6 {[%emt 0:09:58]} 17. h6 {[%emt 0:15:24]} (17. Qxd6 $16 Qa5 18. hxg6 (18. Qxc6 a3 $15)) 17... Bh8 $11 {[%emt 0:05:03][%cal Od8a5]} 18. Bh3 {[%emt 0:01:15]} (18. Qxd6 $11 Qa5 19. Qxc6) 18... a3 {[%emt 0:08:01]} (18... Qxg5 $2 19. Qxd6 Nb7 20. Qxc6 $18) (18... Qb6 $1 $15) 19. b3 {[%emt 0:02:01]} Qa5 {[%emt 0:00:23]} (19... Qxg5 20. Bxc8 Raxc8 (20... Rfxc8 21. Qxd6 Nb7 22. Qe6+ Kf8 23. Nh3 $14) 21. Qxd6) 20. Nge2 {[%emt 0:01:06]} Bxh3 {[%emt 0:01:42]} 21. Rxh3 {[%emt 0:00:06]} Rfd8 {[%emt 0:00:09] White must now prevent ...Rab8.} (21... Rab8 {is interesting.} 22. Kc2 Qb6 23. Rh2 Rfd8) 22. Rhh1 {[%emt 0:01:31]} Qb4 {[%emt 0:07:56]} 23. Qc2 {[%emt 0:06:35]} Ne6 {[%emt 0:02:25]} 24. Rd3 {[%emt 0:01:32] This move loses the game for White.} ({White must play} 24. Rhg1 $15) 24... Nxg5 $19 {[%emt 0:00:55] Black has a king side majority} 25. Kb1 {[%emt 0:04:35]} Ne6 {[%emt 0:00:41]} 26. Qd2 {[%emt 0:02:46]} (26. Nd1 $17 {was worth a try.}) 26... Rab8 {[%emt 0:03:48][%cal Oe6c5]} 27. Rd1 {[%emt 0:00:59][%cal Rd3d6]} Qxc4 {[%emt 0:05:26]} 28. Rxd6 $2 {[%emt 0:00:40] [#]} (28. Ka1 Qc5 29. Na4) 28... Rxb3+ $1 {[%emt 0:01:13][%mdl 512]} 29. Ka1 {[%emt 0:01:40]} (29. axb3 Qxb3+) 29... Rxd6 {[%emt 0:01:35]} 30. Qxd6 {[%emt 0:00:03]} Rxc3 {[%emt 0:00:11]} 31. Qb8+ {[%emt 0:01:03]} Nf8 {[%emt 0:00:06]} 32. Nxc3 {[%emt 0:00:14]} Qxc3+ {[%emt 0:00:05]} 33. Kb1 {[%emt 0:00:04]} Bf6 {[%emt 0:02:39]} 34. Qb7 {[%emt 0:01:49]} Qxf3 {[%emt 0:00:32]} 35. Rd6 {[%emt 0:02:52]} Qxe4+ {[%emt 0:01:31]} 36. Kc1 {[%emt 0:00:11]} Qe1+ {[%emt 0:00:20]} 37. Kc2 {[%emt 0:00:08]} Qe2+ {[%emt 0:02:07]} 38. Kb1 {[%emt 0:01:04] [#]} Be7 $1 {[%emt 0:01:25] ( -> ...f3)} 39. Qb3+ {[%emt 0:00:31]} Kh8 {[%emt 0:00:08]} 40. Rxc6 {[%emt 0:00:49]} Qe4+ {[%emt 0:01:13]} (40... f3 $142 41. Rc1 f2 42. Qc3 Bg5 (42... f1=B $2 43. Re1 $19) (42... f1=Q $2 43. Rxf1 Qxf1+ 44. Kc2 $19) 43. Qxa3 Qb5+ (43... f1=Q $2 44. Rxf1 Qxf1+ 45. Kc2 $19) (43... Bxh6 $2 44. Qc5 $19) 44. Qb2 Qxb2+ (44... f1=Q $2 45. Rxf1 Qxf1+ 46. Kc2 $19) 45. Kxb2 Bxc1+ 46. Kxc1 f1=Q+ (46... f1=B $2 47. Kd2 $19) 47. Kd2 Qc4 48. Ke3 Ne6 (48... Qxa2 {gets mated.} 49. Ke4 Qc4+ 50. Ke3 Ne6 51. Kf2 Qc2+ 52. Kg3 Ng5 53. Kh4 Qh2+ 54. Kxg5 Qf4#) 49. Kf3 Nf4 (49... Qxa2 50. Ke4 Qd2 51. Kxe5 Nc5 52. Kf6 Qd6+ 53. Kf7 Qe6+ 54. Kf8 Nd7#) 50. Kg3 Qf1 (50... Qxa2 51. Kh4 Qf2+ 52. Kg5 Nh5 53. Kg4 Qg3#) 51. Kh4 Qg1 52. a4 g5#) 41. Rc2 {[%emt 0:30:38]} f3 {[%emt 0:30:59] Weighted Error Value: White=1.00/Black=0.36  Mistake:       	White=5     	Black=2      Inaccurate:     	White=2     	Black=2      OK:         	White=4     	Black=3      Best:        	---       	Black=3      Strong:       	White=1     	---} 0-1

[Event "FIDE WSTC Open 50 2025"]
[Site "Prague"]
[Date "2025.02.19"]
[Round "3.19"]
[White "Stohl, Igor"]
[Black "Neave, George"]
[Result "1-0"]
[Annotator "TA"]
[ECO "E73"]
[WhiteElo "2409"]
[BlackElo "2074"]
[PlyCount "55"]
[EventDate "2025.02.17"]
[EventType "team-tourn"]
[EventCountry "CZE"]
[SourceTitle "playchess.com"]
[Source "ChessBase"]
[SourceQuality "1"]
[TimeControl "40/5400+30:1800+30"]

{[%evp 14,55,42,37,37,26,29,20,32,31,38,20,12,12,31,35,72,79,140,165,173,147,155,133,333,338,283,205,360,350,362,359,267,234,2687,2606,2708,2256,4766,4766,29987,29988,29985,29986]} 1. d4 {[%emt 0:00:28]} Nf6 {[%emt 0:00:08]} 2. c4 {[%emt 0:00:16]} g6 {[%emt 0:00:13]} 3. Nc3 {[%emt 0:00:32]} Bg7 {[%emt 0:00:07]} 4. e4 {[%emt 0:00:13]} d6 {[%emt 0:00:05]} 5. Be2 {[%emt 0:00:18]} O-O {[%emt 0:00:33]} 6. Be3 {[%emt 0:00:10]} e5 {[%emt 0:00:26]} 7. d5 {[%emt 0:00:07]} Na6 {[%emt 0:00:14]} 8. h4 {[%emt 0:00:24][%cal Bh2h4,Bh4h5,Bh5h6][%mdl 32]} Nc5 {[%emt 0:00:58] E73: King's Indian: Averbakh Variation without 6...c5.} 9. Qc2 {[%emt 0:00:33]} c6 {[%emt 0:03:30]} 10. h5 {[%emt 0:02:34]} Bd7 {[%emt 0:09:21] The position is equal.} 11. h6 {[%emt 0:08:00]} Bh8 {[%emt 0:00:06]} 12. b4 {[%emt 0:01:27]} Na6 {[%emt 0:19:31]} 13. a3 $36 {[%emt 0:11:22][%mdl 2048] White is more active.} cxd5 {[%emt 0:05:56]} 14. cxd5 {[%emt 0:03:39]} Ne8 $146 {[%emt 0:07:18]} (14... Rc8 15. Rc1 Nc7 16. Qd2 a6 17. a4 Na8 18. a5 Nc7 19. Nh3 Nb5 20. Nxb5 Rxc1+ 21. Qxc1 Bxb5 22. Bxb5 axb5 {0-1 Urazayev,A (2420)-Shomoev,A (2575) Cheliabinsk Variation-A 2022 (9)}) 15. g4 {[%emt 0:09:22]} f5 {[%emt 0:07:01]} ({Better is} 15... Bf6) 16. gxf5 $16 {[%emt 0:04:25]} gxf5 {[%emt 0:00:07]} 17. Nf3 {[%emt 0:06:49] [#] and Rg1+ should not be overlooked} Bf6 {[%emt 0:09:08]} 18. exf5 {[%emt 0:02:43] White has more active pieces.} e4 $2 {[%emt 0:01:17] A mistake that costs the game.} (18... Kh8 $16 19. O-O-O Rc8) 19. Nd4 $18 {[%emt 0:01:19]} Rc8 {[%emt 0:01:23]} 20. Qd2 {[%emt 0:07:13]} Bxf5 {[%emt 0:00:51] [#]} (20... Qe7 21. Rg1+ Kh8) 21. Rc1 {[%emt 0:01:29]} ({Not} 21. Nxf5 Rxc3 22. Bd4 (22. Bxa7 Rc8 $18) 22... Rc8 23. Rg1+ Kh8 $18) 21... Bd7 {[%emt 0:06:55]} 22. Nxe4 {[%emt 0:03:57]} Rxc1+ {[%emt 0:04:25]} 23. Qxc1 {[%emt 0:00:07]} Be7 {[%emt 0:01:13]} (23... Nac7 24. Rg1+ Kh8) 24. Rg1+ {[%emt 0:06:02]} Kh8 {[%emt 0:00:30]} 25. Ne6 {[%emt 0:01:07]} Bxe6 {[%emt 0:00:33]} 26. Bd4+ {[%emt 0:02:52]} Nf6 {[%emt 0:02:54]} 27. dxe6 {[%emt 0:01:45]} Nc7 {[%emt 0:00:54]} 28. Ng5 {[%emt 0:01:06] Weighted Error Value: White=0.09 (flawless) /Black=1.25  Loses game:     	---       	Black=1      Mistake:       	---       	Black=3      Inaccurate:     	---       	Black=1      OK:         	White=8     	Black=7      Best:        	White=1     	Black=1} 1-0

[Event "FIDE WSTC Open 50 2025"]
[Site "Prague"]
[Date "2025.02.19"]
[Round "3.20"]
[White "Robertson, Ian C."]
[Black "Motuz, Karol"]
[Result "1/2-1/2"]
[Annotator "TA"]
[ECO "A46"]
[WhiteElo "2064"]
[BlackElo "2293"]
[PlyCount "43"]
[EventDate "2025.02.17"]
[EventType "team-tourn"]
[EventCountry "CZE"]
[SourceTitle "playchess.com"]
[Source "ChessBase"]
[SourceQuality "1"]
[TimeControl "40/5400+30:1800+30"]

{[%evp 17,43,37,50,0,14,0,10,0,83,58,85,40,137,149,135,147,227,230,303,284,264,275,356,350,313,215,191,29]} 1. d4 {[%emt 0:00:05]} Nf6 {[%emt 0:01:31]} 2. Nf3 {[%emt 0:00:47]} e6 {[%emt 0:00:51]} 3. e3 {[%emt 0:02:43]} Be7 {[%emt 0:01:34]} 4. Bd3 {[%emt 0:01:51]} b6 {[%emt 0:01:56]} 5. c4 {[%emt 0:03:55]} Bb7 {[%emt 0:01:12]} 6. Nc3 {[%emt 0:00:36]} c5 {[%emt 0:01:44]} 7. O-O {[%emt 0:01:35]} cxd4 {[%emt 0:03:34]} 8. exd4 {[%emt 0:02:14]} O-O {[%emt 0:02:42]} 9. d5 {[%emt 0:06:31]} h6 {[%emt 0:07:08]} 10. Bf4 {[%emt 0:15:35] E14: Queen's Indian: Classical Variation (4 e3).} exd5 {[%emt 0:08:52]} 11. Nxd5 {[%emt 0:04:41]} Nxd5 {[%emt 0:02:48]} 12. cxd5 {[%emt 0:00:10] The position is equal.} d6 $146 {[%emt 0:05:11]} (12... Bxd5 $11 13. Rc1 Be6) (12... Bxd5 13. Bh7+ Kxh7 14. Qxd5 Nc6 15. Rad1 Kg8 16. a3 Bf6 17. b4 Ne7 18. Qxd7 Qxd7 19. Rxd7 {1-0 Boyer,M (2463)-Bassini,E (2373) FRA-ch U20 Agen 2023 (9)}) 13. Re1 {[%emt 0:09:49]} Nd7 {[%emt 0:02:25][%cal Oa8c8]} 14. Bb5 {[%emt 0:17:12] White has more active pieces.} Ne5 {[%emt 0:09:44]} 15. Nxe5 $16 {[%emt 0:13:28]} dxe5 {[%emt 0:00:11]} 16. Bxe5 {[%emt 0:00:43]} (16. Rxe5 Bd6 17. Rf5 g6 (17... Bxf4 18. Rxf4 Qxd5 19. Qxd5 $11) 18. Bxd6 Qxd6 $11) 16... Bxd5 {[%emt 0:06:00]} (16... Bd6 $16 {keeps fighting.} 17. Qd4 Bxe5 18. Rxe5 Qd6) 17. Qg4 $18 {[%emt 0:02:50][%csl Ge5][%cal Rg4g7] [#]} Bf6 {[%emt 0:09:53]} 18. Rad1 {[%emt 0:01:58][%cal Od1d5] Rxd5! is the strong threat.} Be6 {[%emt 0:03:14]} 19. Qa4 {[%emt 0:05:59]} ({Stronger than} 19. Rxd8 Bxg4 20. Rxa8 Rxa8 $11) 19... Qc8 {[%emt 0:06:44]} 20. Bxf6 {[%emt 0:01:04]} gxf6 {[%emt 0:00:01]} 21. Qf4 {[%emt 0:01:15]} Qc5 {[%emt 0:02:07] [#]} 22. Bd3 $2 {[%emt 0:02:34] Weighted Error Value: White=0.23 (precise) /Black=0.45  Missed win:     	White=1     	---        Mistake:       	---       	Black=3      Inaccurate:     	White=2     	Black=1      OK:         	White=2     	Black=3      Best:        	White=3     	Black=1} (22. Re3 $1 $18 {[%cal Re3g3]} Qxb5 23. Qxh6) 1/2-1/2

[Event "FIDE WSTC Open 50 2025"]
[Site "Prague"]
[Date "2025.02.19"]
[Round "3.26"]
[White "Svensson, Bengt"]
[Black "Folkova, Martina"]
[Result "1/2-1/2"]
[Annotator "TA"]
[ECO "C84"]
[WhiteElo "2297"]
[BlackElo "2031"]
[PlyCount "83"]
[EventDate "2025.02.17"]
[EventType "team-tourn"]
[EventCountry "CZE"]
[SourceTitle "playchess.com"]
[Source "ChessBase"]
[SourceQuality "1"]
[TimeControl "40/5400+30:1800+30"]

{[%evp 31,83,30,37,25,32,33,55,50,61,47,56,16,21,-103,-107,-125,-106,-127,-14,-220,-154,-168,-159,-162,-160,-151,-154,-158,-159,-162,-156,-142,-140,-187,-191,-188,-212,-235,-247,-229,-187,-158,0,0,0,0,0,0,0,0,0,0,0,0]} 1. e4 {[%emt 0:00:03]} e5 {[%emt 0:00:09]} 2. Nf3 {[%emt 0:00:07]} Nc6 {[%emt 0:00:07]} 3. Bb5 {[%emt 0:00:14]} a6 {[%emt 0:00:09]} 4. Ba4 {[%emt 0:00:14]} Nf6 {[%emt 0:00:07]} 5. O-O {[%emt 0:00:22]} Be7 {[%emt 0:00:18]} 6. d3 {[%emt 0:01:01]} b5 {[%emt 0:00:23]} 7. Bb3 {[%emt 0:00:05]} d6 {[%emt 0:00:19]} 8. c3 {[%emt 0:00:50]} O-O {[%emt 0:01:56]} 9. Nbd2 {[%emt 0:00:45]} Na5 {[%emt 0:00:39]} 10. Bc2 {[%emt 0:00:05]} c5 {[%emt 0:00:15]} 11. Re1 {[%emt 0:01:00]} Nc6 {[%emt 0:02:20]} 12. Nf1 {[%emt 0:02:56]} Re8 {[%emt 0:02:08]} 13. Ng3 {[%emt 0:06:22]} Bf8 {[%emt 0:03:31]} 14. h3 {[%emt 0:04:47]} h6 {[%emt 0:02:26]} 15. d4 {[%emt 0:02:48]} exd4 {[%emt 0:13:02]} 16. cxd4 {[%emt 0:00:55]} cxd4 {[%emt 0:01:33]} 17. Nxd4 {[%emt 0:00:35] C90: Closed Ruy Lopez with 7...d6: Early deviations.} Nxd4 {[%emt 0:01:22]} 18. Qxd4 {[%emt 0:00:05]} Qc7 {[%emt 0:06:37]} 19. Bb3 {[%emt 0:11:14][%cal Oc1h6] White is slightly better.} d5 {[%emt 0:22:11]} 20. e5 {[%emt 0:12:09][%cal Oc1f4]} (20. Bxd5 Nxd5 21. Qxd5 Bb7 $11) (20. Bxh6 Bc5 $11) 20... Bc5 {[%emt 0:01:14]} 21. Qf4 {[%emt 0:03:03] aiming for Bd2.} (21. Qc3 $5 d4 22. Qd3 $14 (22. Qf3 Bb7 $11)) 21... Bd6 $1 {[%emt 0:08:02][%cal Rd6e5]} 22. Qh4 $146 {[%emt 0:17:05]} (22. exd6 $2 Rxe1+ 23. Nf1 Qc6 $19) (22. Ne4 $1 $11 Bxe5 23. Nxf6+ gxf6 24. Qd2 (24. Qxh6 Bh2+ 25. Kf1 Bf5 $11) (24. Bxd5 Bxf4 25. Rxe8+ Kg7 $17)) (22. Ne4 Bxe5 23. Nxf6+ gxf6 24. Qf3 Bh2+ 25. Kf1 Rxe1+ 26. Kxe1 Qe5+ 27. Be3 Bf5 28. Rd1 {1-0 Bosboom,M (2425)-Ernst,S (2517) Dieren op 2004 (4)}) 22... Bxe5 $17 {[%emt 0:01:31]} 23. Bxh6 {[%emt 0:02:10]} gxh6 {[%emt 0:18:06]} 24. Qxh6 {[%emt 0:00:50]} Re6 {[%emt 0:07:59]} (24... Bxb2 $6 25. Nh5 Ne4 (25... Bxa1 26. Qg7#) (25... Rxe1+ $2 26. Rxe1 Ne4 27. Bxd5 $18) 26. Bxd5 $11) (24... Nh7 $1 $17 25. Bxd5 Bb7 26. Qg6+ Kh8 27. Bxf7 Re7) 25. Nf5 $2 {[%emt 0:16:50]} (25. Qg5+ $1 $11 {and White is okay.} Kf8 26. Nf5) 25... Ne4 {[%emt 0:00:20]} (25... Bxb2 26. Qg7#) 26. Qh4 {[%emt 0:01:58] [#]} Bb7 {[%emt 0:03:01]} (26... Bxb2 27. Bxd5 Bxa1 28. Bxe6 Bxe6 29. Qxe4 $18) 27. Rxe4 {[%emt 0:03:25]} dxe4 {[%emt 0:00:34]} (27... Bh2+ 28. Kh1 Rxe4 29. Qg5+ Kf8 30. Qg7+ Ke8 31. Qg8+ Kd7 32. Qxf7+ Kd8 33. Qf6+ (33. Bxd5 $2 Qxf7 34. Bxf7 Be5 $19) 33... Kc8 34. g3 Bxg3 35. Nxg3) 28. Qg5+ {[#]} Kf8 $1 {[%emt 0:00:33]} 29. Bxe6 {[%emt 0:02:54]} fxe6 {[%emt 0:00:01]} 30. Qh6+ {[%emt 0:00:16]} Bg7 {[%emt 0:00:26]} 31. Qxe6 {[%emt 0:01:41]} Re8 {[%emt 0:00:35]} 32. Nxg7 {[%emt 0:00:37]} (32. Qb3 $17 {was called for.}) 32... Qxg7 $19 {[%emt 0:00:23]} (32... Rxe6 $2 33. Nxe6+ Ke7 34. Nxc7 $18) 33. Qd6+ {[%emt 0:00:23]} Kg8 {[%emt 0:01:52][%cal Oe4e3]} 34. Kh1 {[%emt 0:02:40]} e3 {[%emt 0:00:04][%csl Gb7][%cal Rg7g2]} (34... Qxb2 35. Qg6+ Kf8 36. Qf5+ Kg8 (36... Ke7 37. Rd1 $11) 37. Qg6+ Kf8 38. Qf5+ Ke7 39. Rd1 $11) 35. f3 {[%emt 0:00:10]} e2 {[%emt 0:00:35][%cal Ob7f3] ( -> ...Bxf3!)} (35... Qxb2 36. Qg6+ Kf8 37. Qf5+ Kg7 38. Qd7+ Kf6 39. Rd1 $15) 36. Re1 {[%emt 0:00:10]} Qe5 $2 {[%emt 0:01:11]} ({Worse is} 36... Qxb2 37. Qg6+ Kf8 38. Qf5+ Ke7 39. Qh7+ Kf8 40. Qf5+ Ke7 41. Qh7+ Ke6 42. Qxb7 $11) ({Black should play} 36... Qg5 $17 {and ...Bd5 would now be decisive} 37. Qd3 Re3) 37. Qg6+ $11 {The position is equal.} Kf8 {[%emt 0:00:20][%cal Oe8e6]} 38. Rxe2 $1 {[%emt 0:00:51]} Qxe2 {[%emt 0:00:13]} 39. Qf6+ {[%emt 0:00:03]} Kg8 {[%emt 0:00:15]} 40. Qg6+ {[%emt 0:00:05]} Kh8 {[%emt 0:00:27]} 41. Qh6+ {[%emt 0:30:01]} Kg8 {[%emt 0:30:09]} 42. Qg6+ {And White is the lucky defender.   Weighted Error Value: White=0.30/Black=0.28 (precise)   Loses game:     	White=1     	---        Mistake:       	White=2     	Black=2      Inaccurate:     	White=1     	---        OK:         	White=5     	Black=7      Best:        	White=10    	Black=3      Strong:       	White=1     	Black=2} 1/2-1/2